bitfinex/quotes_SOLUSD_20250310
["timestamp","ask_amount","ask_price","bid_price","bid_amount"]
[1741631974939,0.15564101,118.41,118.4,92.19082896]
[1741631975542,0.15564101,118.41,118.4,73.39901853]
[1741631975941,23.53364101,118.41,118.4,73.39901853]
[1741631976126,20.15564101,118.41,118.4,73.39901853]
[1741631976326,23.53364101,118.41,118.39,73.39901853]
[1741631976737,20.15564101,118.41,118.4,73.39901853]
[1741631977127,23.53364101,118.41,118.39,73.39901853]
[1741631977718,23.53364101,118.41,118.4,73.39901853]
[1741631977719,0.15564101,118.41,118.4,73.39901853]
[1741631978335,0.15564101,118.41,118.4,100.77889053]
[1741631979536,0.15564101,118.41,118.4,176.27889053]
[1741631979723,0.15564101,118.41,118.4,18.933972]
[1741631979925,0.15564101,118.41,118.4,100.77889053]
[1741631980247,0.15564101,118.41,118.4,73.39901853]
[1741631981284,20.15564101,118.41,118.39,73.46201853]
[1741631981443,36.97364101,118.41,118.39,0.063]
[1741631982324,110.37265954,118.41,118.39,0.063]
[1741631982529,73.39901853,118.4,118.39,0.063]
[1741631982733,110.37265954,118.41,118.39,0.063]
[1741631983359,36.97364101,118.41,118.39,0.063]
[1741631984061,110.37265954,118.41,118.39,0.063]
[1741631984840,73.5411801,118.4,118.39,0.063]
[1741631985046,94.33299053,118.4,118.39,0.0001]
[1741631985256,20.0,118.37,118.29,0.063]
[1741631985463,20.0,118.34,118.32,73.39901853]
[1741631985661,223.7,118.34,118.33,73.39901853]
[1741631986041,223.7,118.34,118.33,92.19082896]
[1741631986458,223.7,118.34,118.33,73.39901853]
[1741631988643,223.7,118.34,118.33,81.84991853]
[1741631988837,223.7,118.34,118.33,100.64172896]
[1741631989453,223.88580821,118.34,118.33,100.64172896]
[1741631989762,223.88580821,118.34,118.33,92.19082896]
[1741631990060,223.88580821,118.34,118.33,73.39901853]
[1741631990263,223.88580821,118.34,118.31,8.4523]
[1741631990561,223.88580821,118.34,118.33,73.39901853]
[1741631991750,223.88580821,118.34,118.33,81.91291853]
[1741631992166,223.88580821,118.34,118.33,73.46201853]
[1741631993266,223.88580821,118.34,118.33,81.91291853]
[1741631993458,223.88580821,118.34,118.33,100.84689053]
[1741631993865,0.18580821,118.34,118.33,100.84689053]
[1741631994267,0.18580821,118.34,118.33,76.60365774]
[1741631994654,0.18580821,118.34,118.33,152.10365774]
[1741631994855,0.15686893,118.35,118.34,0.14216157]
[1741631995069,0.16151314,118.36,118.34,68.08975774]
[1741631995268,0.16151314,118.36,118.35,68.08975774]
[1741631995574,223.94000366,118.37,118.36,0.14216157]
[1741631995884,223.94000366,118.37,118.36,49.29794731]
[1741631996354,0.15518977,118.38,118.37,0.14216157]
[1741631996674,0.15518977,118.38,118.37,192.60338191]
[1741631996872,0.15518977,118.38,118.37,201.05138191]
[1741631997571,0.16756109,118.39,118.38,0.14216157]
[1741631997769,0.16756109,118.39,118.38,98.45373305]
[1741631997971,0.16756109,118.39,118.38,192.74554348]
[1741631998353,0.16756109,118.39,118.38,241.7852657]
[1741631998851,0.16756109,118.39,118.38,250.2325657]
[1741631999972,0.16756109,118.39,118.38,176.41475728]
[1741632000272,0.16756109,118.39,118.38,250.09040413]
[1741632001380,0.16756109,118.39,118.38,250.2325657]
[1741632002385,0.16756109,118.39,118.38,166.14310413]
[1741632002595,0.16756109,118.39,118.38,73.67564685]
[1741632003093,0.16756109,118.39,118.38,174.7325657]
[1741632003955,0.16756109,118.39,118.38,82.18594685]
[1741632004277,0.16756109,118.39,118.38,73.73864685]
[1741632004576,0.16756109,118.39,118.38,156.00375527]
[1741632004767,0.16756109,118.39,118.38,174.65340413]
[1741632005685,0.16756109,118.39,118.38,166.20610413]
[1741632006483,0.16756109,118.39,118.38,174.7955657]
[1741632006871,0.16756109,118.39,118.38,156.00375527]
[1741632007073,0.16756109,118.39,118.38,174.65340413]
[1741632007567,0.16756109,118.39,118.38,0.063]
[1741632007879,0.16756109,118.39,118.38,73.73864685]
[1741632008092,0.16756109,118.39,118.38,82.18594685]
[1741632008264,0.16756109,118.39,118.38,73.73864685]
[1741632009168,0.03,118.4,118.38,73.73864685]
[1741632009368,20.19846163,118.4,118.39,73.67564685]
[1741632009584,0.19846163,118.4,118.39,73.67564685]
[1741632009895,0.19846163,118.4,118.38,0.063]
[1741632010064,0.19846163,118.4,118.39,92.60961885]
[1741632010585,0.19846163,118.4,118.39,73.67564685]
[1741632010786,0.19846163,118.4,118.39,92.46745728]
[1741632010967,0.19846163,118.4,118.39,92.60961885]
[1741632011321,0.19846163,118.4,118.39,101.05621885]
[1741632011878,0.19846163,118.4,118.39,100.91405728]
[1741632012575,0.19846163,118.4,118.39,101.05621885]
[1741632012772,6.163e-05,118.4,118.39,185.52171885]
[1741632012979,7.27e-06,118.41,118.4,18.933972]
[1741632013163,223.93158663,118.42,118.4,92.60961885]
[1741632013367,223.93158663,118.42,118.41,100.91265728]
[1741632013887,9.37e-06,118.46,118.45,0.14216157]
[1741632014090,9.37e-06,118.46,118.45,168.10961885]
[1741632014479,8.725e-05,118.47,118.46,18.79181043]
[1741632014675,6.264e-05,118.48,118.46,177.25501885]
[1741632014978,0.03,118.51,118.48,18.933972]
[1741632015179,0.0001,118.52,118.51,0.14216157]
[1741632015384,0.0001,118.52,118.51,176.40555728]
[1741632016188,0.0001,118.52,118.51,176.54771885]
[1741632017366,223.68,118.56,118.53,0.14216157]
[1741632017685,223.68,118.56,118.55,166.2852657]
[1741632017895,223.68,118.56,118.55,241.7852657]
[1741632018267,12.90954499,118.59,118.57,0.14216157]
[1741632018466,12.90954499,118.59,118.58,67.89247607]
[1741632018671,12.90954499,118.59,118.58,67.7503145]
[1741632018907,12.90954499,118.59,118.58,48.95850407]
[1741632019591,0.03,118.59,118.58,48.95850407]
[1741632020173,20.03,118.59,118.58,48.95850407]
[1741632020374,0.03,118.59,118.51,0.14216157]
[1741632020595,0.03,118.59,118.56,48.95850407]
[1741632020596,13.36,118.58,118.56,48.95850407]
[1741632021097,13.36,118.58,118.57,48.95850407]
[1741632021396,16.7332,118.58,118.57,48.95850407]
[1741632021605,16.7332,118.58,118.56,48.95850407]
[1741632021808,13.36,118.58,118.56,48.95850407]
[1741632022179,16.7333,118.58,118.56,48.95850407]
[1741632022385,16.7333,118.58,118.51,8.4378]
[1741632022572,20.0,118.55,118.54,48.95850407]
[1741632022975,20.0,118.55,118.5,76.52665293]
[1741632023181,20.0,118.53,118.48,0.14216157]
[1741632023473,236.86,118.52,118.51,48.95850407]
[1741632023675,240.2349,118.52,118.49,48.95850407]
[1741632023890,236.86,118.52,118.51,48.95850407]
[1741632024295,236.86,118.52,118.51,73.52980626]
[1741632024705,223.5,118.52,118.51,73.52980626]
[1741632024890,223.5,118.52,118.51,92.32161669]
[1741632025599,223.48,118.58,118.53,0.14216157]
[1741632025806,0.03,118.59,118.58,18.79181043]
[1741632025982,0.03,118.59,118.58,167.96377826]
[1741632026190,0.03,118.61,118.58,167.96377826]
[1741632026511,0.03,118.61,118.58,94.433972]
[1741632026877,0.03,118.61,118.6,73.67196783]
[1741632027080,0.03,118.61,118.6,92.46377826]
[1741632027301,0.0001,118.61,118.6,165.99358452]
[1741632027479,0.0001,118.61,118.6,100.89547826]
[1741632027697,0.0001,118.61,118.6,249.92528452]
[1741632027875,0.0001,118.61,118.6,252.47188452]
[1741632028312,0.0001,118.61,118.6,178.94207826]
[1741632029183,0.0001,118.61,118.6,10.9783]
[1741632029506,0.16131208,118.61,118.6,100.75331669]
[1741632029801,0.16131208,118.61,118.6,100.89547826]
[1741632030004,0.16131208,118.61,118.6,249.92528452]
[1741632030388,0.16131208,118.61,118.6,176.39547826]
[1741632031409,0.16131208,118.61,118.6,73.52980626]
[1741632031610,0.16131208,118.61,118.59,73.52980626]
[1741632031779,0.16131208,118.61,118.56,73.52980626]
[1741632031981,0.16131208,118.61,118.55,6.4509]
[1741632031982,0.16131208,118.61,118.58,73.52980626]
[1741632032181,0.16131208,118.61,118.59,73.52980626]
[1741632032382,77.06351834,118.61,118.55,14.8859]
[1741632032587,20.0,118.6,118.57,73.52980626]
[1741632032790,20.0,118.6,118.59,73.52980626]
[1741632033202,0.16131208,118.61,118.59,73.52980626]
[1741632033406,0.16131208,118.61,118.6,92.46377826]
[1741632033612,0.16131208,118.61,118.6,100.89547826]
[1741632034185,0.16131208,118.61,118.6,92.32161669]
[1741632034805,0.16131208,118.61,118.6,73.52980626]
[1741632035388,0.16131208,118.61,118.6,81.96150626]
[1741632035594,0.16131208,118.61,118.6,100.75331669]
[1741632035809,0.16131208,118.61,118.6,100.89547826]
[1741632035989,0.16131208,118.61,118.6,176.39547826]
[1741632036718,223.34,118.66,118.61,18.79181043]
[1741632037019,223.34,118.66,118.63,73.52980626]
[1741632037200,223.34,118.66,118.62,73.52980626]
[1741632037390,223.34,118.66,118.63,73.52980626]
[1741632037599,223.34,118.66,118.65,73.52980626]
[1741632037799,223.34,118.66,118.65,92.32161669]
[1741632038106,223.34,118.66,118.64,0.14216157]
[1741632038427,223.34,118.66,118.65,73.52980626]
[1741632040619,223.34,118.66,118.64,73.52980626]
[1741632040831,223.34,118.66,118.62,6.47496157]
[1741632041036,0.1842732,118.68,118.65,73.67196783]
[1741632041203,0.1842732,118.68,118.65,0.14216157]
[1741632041403,0.1842732,118.68,118.64,0.14216157]
[1741632041615,0.1842732,118.68,118.66,18.79181043]
[1741632041828,0.1842732,118.68,118.67,73.52980626]
[1741632042035,0.1842732,118.68,118.66,73.52980626]
[1741632042330,93.52980626,118.67,118.62,73.52980626]
[1741632042494,73.52980626,118.66,118.61,73.52980626]
[1741632042700,0.2142732,118.68,118.64,73.52980626]
[1741632042933,20.2142732,118.68,118.66,73.52980626]
[1741632043228,0.2142732,118.68,118.67,73.52980626]
[1741632043710,0.2142732,118.68,118.67,81.95650626]
[1741632043917,0.2142732,118.68,118.67,73.52980626]
[1741632044317,0.2142732,118.68,118.67,48.9005371]
[1741632044635,0.2142732,118.68,118.66,0.14216157]
[1741632044941,0.2142732,118.68,118.67,48.9005371]
[1741632045524,0.2142732,118.68,118.67,57.3272371]
[1741632045928,0.2142732,118.68,118.67,48.9005371]
[1741632046208,0.2142732,118.68,118.67,57.3272371]
[1741632046420,0.2142732,118.68,118.67,67.69234753]
[1741632046731,0.2142732,118.68,118.67,76.11904753]
[1741632047026,0.2142732,118.68,118.67,48.9005371]
[1741632047232,0.2142732,118.68,118.67,57.3272371]
[1741632048229,0.2142732,118.68,118.67,48.9005371]
[1741632048414,0.2142732,118.68,118.67,67.69234753]
[1741632049211,0.03,118.68,118.67,67.69234753]
[1741632049414,0.18499587,118.68,118.67,76.11904753]
[1741632050337,0.17692724,118.69,118.67,125.1617462]
[1741632050511,6.519e-05,118.71,118.7,18.933972]
[1741632050712,0.20975073,118.73,118.7,143.3345091]
[1741632051009,5.073e-05,118.73,118.72,122.7478462]
[1741632051315,4.094e-05,118.75,118.74,8.4217]
[1741632051517,4.094e-05,118.75,118.74,200.51458463]
[1741632052035,4.094e-05,118.75,118.74,124.4005371]
[1741632052236,4.094e-05,118.75,118.74,48.9005371]
[1741632052742,4.094e-05,118.75,118.73,48.9005371]
[1741632052914,4.094e-05,118.75,118.72,48.9005371]
[1741632053106,4.094e-05,118.75,118.7,27.07384886]
[1741632053107,4.094e-05,118.75,118.7,18.64964886]
[1741632053313,52.26927804,118.75,118.7,48.9005371]
[1741632053813,48.9005371,118.74,118.69,48.9005371]
[1741632054121,68.9005371,118.73,118.68,48.9005371]
[1741632054335,93.34010914,118.73,118.68,73.34010914]
[1741632054525,73.34010914,118.72,118.67,73.40310914]
[1741632054934,20.0,118.71,118.69,73.34010914]
[1741632055227,20.0,118.7,118.68,73.34010914]
[1741632056112,0.03004094,118.75,118.71,0.14216157]
[1741632056317,20.0,118.74,118.72,73.34010914]
[1741632056519,73.34010914,118.74,118.69,148.84010914]
[1741632056821,96.73855008,118.75,118.7,73.34010914]
[1741632057544,0.03004094,118.75,118.71,73.34010914]
[1741632058052,20.0,118.74,118.72,73.34010914]
[1741632058719,3.39844094,118.75,118.73,73.34010914]
[1741632058720,0.03004094,118.75,118.73,73.34010914]
[1741632058923,0.03004094,118.75,118.74,73.34010914]
[1741632059506,0.03004094,118.75,118.72,8.423]
[1741632059710,0.03004094,118.75,118.73,73.34010914]
[1741632059927,0.03004094,118.75,118.72,73.34010914]
[1741632060332,20.0,118.74,118.66,0.14216157]
[1741632060637,20.0,118.72,118.69,73.34010914]
[1741632061029,20.0,118.72,118.68,73.34010914]
[1741632061225,20.0,118.72,118.7,73.34010914]
[1741632061934,20.0,118.72,118.7,81.76450914]
[1741632062515,23.3693,118.72,118.69,73.34010914]
[1741632062813,20.0,118.71,118.68,73.34010914]
[1741632063221,20.0,118.71,118.69,73.34010914]
[1741632063441,20.0,118.71,118.7,73.34010914]
[1741632063636,20.0,118.71,118.69,73.34010914]
[1741632063862,20.0,118.71,118.67,0.063]
[1741632064139,81.8,118.72,118.68,73.34010914]
[1741632064332,20.0,118.72,118.7,73.34010914]
[1741632064537,0.03004094,118.75,118.72,0.14216157]
[1741632064840,4.094e-05,118.75,118.74,38.933972]
[1741632065012,223.13,118.84,118.77,18.933972]
[1741632065216,223.13,118.84,118.83,73.34010914]
[1741632066118,296.47010914,118.84,118.79,73.34010914]
[1741632066442,223.13,118.84,118.81,73.34010914]
[1741632066640,223.13,118.84,118.82,73.34010914]
[1741632066836,223.13,118.84,118.77,27.21141043]
[1741632066837,223.13,118.84,118.77,75.84216157]
[1741632067036,73.34010914,118.83,118.76,2.6331]
[1741632067229,73.34010914,118.83,118.78,73.34010914]
[1741632067431,20.0,118.79,118.77,73.34010914]
[1741632067642,33.32,118.78,118.71,0.28432314]
[1741632067830,36.6875,118.78,118.73,73.34010914]
[1741632068039,33.32,118.78,118.74,73.34010914]
[1741632068344,110.02770914,118.78,118.73,73.34010914]
[1741632068548,110.02770914,118.78,118.72,73.34010914]
[1741632068854,110.02770914,118.78,118.73,73.34010914]
[1741632068855,106.66010914,118.78,118.73,73.34010914]
[1741632069264,33.32,118.78,118.71,0.28432314]
[1741632069434,0.1557541,118.75,118.74,73.34010914]
[1741632069749,0.1557541,118.75,118.74,165.61419028]
[1741632070054,0.16263108,118.76,118.75,18.79181043]
[1741632070229,0.16263108,118.76,118.75,73.34010914]
[1741632070944,0.16263108,118.76,118.75,92.13191957]
[1741632071462,0.16263108,118.76,118.74,18.79181043]
[1741632071751,0.16263108,118.76,118.75,73.34010914]
[1741632072242,0.16263108,118.76,118.75,92.13191957]
[1741632072558,0.16263108,118.76,118.75,73.34010914]
[1741632073533,0.16263108,118.76,118.74,73.34010914]
[1741632073951,0.16263108,118.76,118.75,73.34010914]
[1741632074249,0.16263108,118.76,118.75,92.27408114]
[1741632074455,0.16263108,118.76,118.75,167.97408114]
[1741632074653,13.48263108,118.76,118.7,84.5574]
[1741632074850,13.48263108,118.76,118.72,73.34010914]
[1741632075061,13.48263108,118.76,118.75,73.34010914]
[1741632075242,13.48263108,118.76,118.71,27.357772]
[1741632075243,13.48263108,118.76,118.73,73.34010914]
[1741632075444,13.48263108,118.76,118.72,73.34010914]
[1741632075940,223.02,118.75,118.71,73.34010914]
[1741632076456,223.02,118.75,118.73,73.34010914]
[1741632076834,223.02,118.75,118.7,27.64921043]
[1741632077028,226.3884,118.75,118.71,73.34010914]
[1741632077257,226.3884,118.75,118.69,84.1251]
[1741632077258,73.34010914,118.74,118.69,73.34010914]
[1741632077931,73.34010914,118.72,118.67,6.0823]
[1741632078135,73.34010914,118.72,118.67,87.84870914]
[1741632078463,20.0,118.71,118.68,73.34010914]
[1741632078755,13.3,118.7,118.67,0.063]
[1741632078933,13.3,118.7,118.67,73.40310914]
[1741632079139,13.3,118.7,118.68,73.34010914]
[1741632079342,13.3,118.7,118.69,92.13191957]
[1741632079739,13.3,118.7,118.69,18.79181043]
[1741632080055,13.3,118.7,118.68,73.34010914]
[1741632080452,16.6698,118.7,118.67,0.063]
[1741632080645,90.00990914,118.7,118.67,0.063]
[1741632081160,13.3,118.7,118.69,73.34010914]
[1741632081383,13.3,118.7,118.67,0.063]
[1741632081575,90.01000914,118.7,118.67,0.063]
[1741632082161,73.34010914,118.69,118.67,0.063]
[1741632082351,93.34010914,118.68,118.67,0.063]
[1741632082674,112.27408114,118.68,118.67,0.063]
[1741632082893,185.61419028,118.68,118.67,0.0001]
[1741632083074,187.61419028,118.68,118.67,0.0001]
[1741632083251,73.34010914,118.65,118.6,0.063]
[1741632083451,73.34010914,118.63,118.6,0.063]
[1741632084474,76.71190914,118.63,118.6,0.063]
[1741632084779,73.34010914,118.62,118.6,0.063]
[1741632084959,236.4,118.64,118.6,0.063]
[1741632085278,309.74010914,118.64,118.6,0.063]
[1741632085771,236.4,118.64,118.61,73.34010914]
[1741632085977,236.4,118.64,118.62,73.34010914]
[1741632086177,223.08,118.64,118.63,8.4295]
[1741632086480,223.08,118.64,118.63,81.76960914]
[1741632086676,223.08,118.64,118.63,81.91177071]
[1741632087356,223.08,118.64,118.63,82.05393228]
[1741632088073,13.32,118.7,118.65,0.28432314]
[1741632088263,13.32,118.7,118.66,73.34010914]
[1741632088465,13.32,118.7,118.65,82.05203228]
[1741632088659,90.02990914,118.7,118.65,73.34010914]
[1741632088864,73.34010914,118.68,118.63,79.46010914]
[1741632089063,73.34010914,118.69,118.63,79.46010914]
[1741632089582,73.34010914,118.68,118.63,6.12]
[1741632089770,73.34010914,118.68,118.63,87.88950914]
[1741632090086,20.0,118.67,118.65,73.34010914]
[1741632090379,20.0,118.67,118.64,73.34010914]
[1741632090580,20.0,118.67,118.63,87.88950914]
[1741632091085,20.0,118.67,118.64,73.34010914]
[1741632091262,90.03000914,118.7,118.65,0.063]
[1741632092088,223.16,118.71,118.69,73.34010914]
[1741632092379,223.16,118.71,118.65,124.05321043]
[1741632092581,223.16,118.71,118.67,73.34010914]
[1741632093256,223.16,118.71,118.67,0.14216157]
[1741632093456,223.16,118.71,118.68,73.34010914]
[1741632093879,223.16,118.71,118.69,73.34010914]
[1741632094074,223.16,118.71,118.7,8.4245]
[1741632094280,223.16,118.71,118.68,8.56816157]
[1741632094482,223.16,118.71,118.69,73.34010914]
[1741632095001,0.03,118.76,118.7,79.86617071]
[1741632095171,13.35,118.76,118.72,73.34010914]
[1741632095681,13.35,118.76,118.71,73.48227071]
[1741632095885,13.35,118.76,118.72,73.34010914]
[1741632096060,13.35,118.76,118.72,81.76290914]
[1741632096260,73.34010914,118.75,118.7,14.8083]
[1741632096562,73.34010914,118.74,118.7,14.8083]
[1741632096887,73.34010914,118.75,118.7,88.14840914]
[1741632097060,86.69010914,118.76,118.7,88.14840914]
[1741632097383,73.34010914,118.74,118.7,6.3839]
[1741632097567,73.34010914,118.74,118.69,8.4247]
[1741632097773,73.34010914,118.73,118.69,8.4247]
[1741632097958,73.34010914,118.74,118.69,8.4247]
[1741632098482,86.0402,118.76,118.7,73.34010914]
[1741632098670,86.64010914,118.75,118.7,73.34010914]
[1741632098879,86.64010914,118.75,118.7,0.14216157]
[1741632099062,73.34010914,118.74,118.69,81.76480914]
[1741632099264,86.64010914,118.75,118.69,81.76480914]
[1741632099879,86.64010914,118.75,118.7,0.28432314]
[1741632100083,73.34010914,118.71,118.68,2.6679]
[1741632100294,77.55260914,118.7,118.66,6.0813]
[1741632100467,73.34010914,118.68,118.65,0.063]
[1741632101463,86.64010914,118.69,118.65,8.4911]
[1741632101788,86.64010914,118.69,118.65,0.063]
[1741632102465,13.3,118.69,118.65,8.4911]
[1741632102783,13.3,118.69,118.65,81.83120914]
[1741632103180,0.03,118.68,118.67,73.34010914]
[1741632103393,0.03,118.68,118.67,92.27408114]
[1741632104390,0.03,118.68,118.67,100.70078114]
[1741632104574,13.3,118.73,118.68,18.64964886]
[1741632104884,13.3,118.73,118.7,73.34010914]
[1741632105095,86.64010914,118.73,118.67,8.4267]
[1741632105268,73.34010914,118.71,118.66,8.4271]
[1741632105465,73.34010914,118.69,118.65,0.063]
[1741632106366,20.0,118.7,118.65,8.491]
[1741632106681,77.55230914,118.71,118.66,73.34010914]
[1741632106888,73.34010914,118.71,118.66,73.34010914]
[1741632107100,77.55200914,118.71,118.66,73.34010914]
[1741632107260,20.0,118.7,118.65,81.83110914]
[1741632107463,93.34010914,118.7,118.65,73.40310914]
[1741632107693,73.34010914,118.69,118.65,0.063]
[1741632107867,93.34010914,118.7,118.65,0.063]
[1741632108066,93.34010914,118.7,118.65,0.34732314]
[1741632108388,73.34010914,118.69,118.65,0.063]
[1741632108597,73.34010914,118.66,118.65,0.063]
[1741632108802,309.78010914,118.66,118.65,0.063]
[1741632109083,20.0,118.63,118.6,0.063]
[1741632109288,20.0,118.63,118.6,8.4946]
[1741632109490,236.62066059,118.66,118.61,73.62443228]
[1741632109702,236.62066059,118.66,118.62,73.34010914]
[1741632109869,73.34010914,118.65,118.61,0.28432314]
[1741632110067,73.34010914,118.65,118.6,73.40310914]
[1741632110270,93.34010914,118.63,118.6,0.063]
[1741632110577,73.34010914,118.61,118.6,0.063]
[1741632111993,20.0,118.58,118.55,0.063]
[1741632112178,73.34010914,118.56,118.55,0.063]
[1741632112374,86.64010914,118.56,118.55,0.063]
[1741632112768,90.85730914,118.56,118.55,0.063]
[1741632113195,86.64010914,118.56,118.55,0.063]
[1741632113581,90.85730914,118.56,118.55,0.063]
[1741632113786,183.13139028,118.56,118.55,0.063]
[1741632114686,20.0,118.52,118.5,0.063]
[1741632114997,185.61419028,118.51,118.5,0.063]
[1741632115189,112.27408114,118.51,118.48,0.063]
[1741632115497,73.34010914,118.49,118.48,0.063]
[1741632115700,13.3,118.5,118.48,0.063]
[1741632115881,86.64010914,118.5,118.48,0.063]
[1741632116194,73.34010914,118.49,118.48,0.063]
[1741632116408,13.3,118.5,118.48,0.063]
[1741632116891,86.64010914,118.5,118.48,0.063]
[1741632117588,13.3,118.5,118.48,0.063]
[1741632118193,90.85950914,118.5,118.48,0.063]
[1741632118495,13.3,118.5,118.48,0.063]
[1741632118810,13.32,118.52,118.48,81.84330914]
[1741632119105,81.8,118.53,118.49,73.34010914]
[1741632119671,13.32,118.54,118.51,74.91110914]
[1741632119883,13.32,118.54,118.51,1.571]
[1741632120679,13.32,118.54,118.51,83.34910914]
[1741632120875,13.32,118.54,118.51,10.009]
[1741632121182,13.32,118.54,118.51,83.34910914]
[1741632121483,227.417,118.57,118.53,73.34010914]
[1741632121484,223.2,118.57,118.53,73.34010914]
[1741632121681,223.2,118.57,118.55,73.34010914]
[1741632122081,223.2,118.57,118.56,73.62443228]
[1741632122704,223.2,118.57,118.56,100.70858114]
[1741632122896,223.2,118.57,118.56,102.21698114]
[1741632123099,223.2,118.57,118.56,10.22722314]
[1741632123399,223.2,118.57,118.56,83.56733228]
[1741632123797,223.2,118.57,118.56,83.28300914]
[1741632124102,223.2,118.57,118.56,102.21698114]
[1741632124484,223.4,118.62,118.58,0.28432314]
[1741632124675,223.4,118.62,118.6,73.34010914]
[1741632124880,227.6152,118.62,118.57,73.34010914]
[1741632125095,223.4,118.62,118.58,73.34010914]
[1741632125300,223.4,118.62,118.6,73.34010914]
[1741632125600,223.4,118.62,118.61,73.34010914]
[1741632125812,0.18066059,118.66,118.61,92.27408114]
[1741632125983,0.18066059,118.66,118.64,1.5985]
[1741632126181,20.0,118.65,118.64,1.5985]
[1741632126381,77.73446973,118.66,118.64,1.5985]
[1741632126587,20.0,118.65,118.64,1.5985]
[1741632126803,97.55410914,118.65,118.64,1.5985]
[1741632127002,20.0,118.65,118.64,1.5985]
[1741632127202,97.55410914,118.65,118.6,83.7307]
[1741632127398,73.34010914,118.63,118.6,8.0307]
[1741632127608,86.64010914,118.63,118.6,1.6615]
[1741632127787,73.34010914,118.62,118.6,1.6615]
[1741632127990,86.64010914,118.63,118.6,1.6615]
[1741632128209,13.3,118.63,118.6,1.6615]
[1741632128398,13.3,118.63,118.6,75.00160914]
[1741632129278,17.5148,118.63,118.6,1.6615]
[1741632129478,0.1716508,118.61,118.6,1.94582314]
[1741632129916,0.1716508,118.61,118.6,1.6615]
[1741632131689,4.3870508,118.61,118.6,1.6615]
[1741632132085,77.72715994,118.61,118.54,1.5016]
[1741632132286,77.72715994,118.61,118.55,73.34010914]
[1741632132603,77.72715994,118.61,118.56,18.933972]
[1741632132783,0.1716508,118.61,118.59,73.34010914]
[1741632132979,0.1716508,118.61,118.6,100.26918114]
[1741632133926,0.16758367,118.62,118.61,0.28432314]
[1741632134094,0.17562262,118.63,118.62,18.933972]
[1741632134287,0.16748439,118.64,118.63,92.27408114]
[1741632134489,0.17551208,118.65,118.63,92.27408114]
[1741632134805,0.17551208,118.65,118.64,73.62443228]
[1741632135112,0.17551208,118.65,118.64,82.05323228]
[1741632135516,0.17551208,118.65,118.64,100.70288114]
[1741632135720,0.18197562,118.67,118.65,73.62443228]
[1741632136101,0.18197562,118.67,118.66,18.64964886]
[1741632136308,0.18197562,118.67,118.66,91.989758]
[1741632137713,0.18197562,118.67,118.66,73.34010914]
[1741632138015,0.18197562,118.67,118.64,157.46860914]
[1741632138218,0.18197562,118.67,118.64,157.46880914]
[1741632138917,20.0,118.66,118.64,75.7]
[1741632139119,0.18197562,118.67,118.62,73.62443228]
[1741632139299,0.18197562,118.67,118.66,73.34010914]
[1741632139696,0.18197562,118.67,118.65,73.34010914]
[1741632139891,77.73538476,118.67,118.64,0.063]
[1741632140217,77.73548476,118.67,118.64,0.063]
[1741632140394,73.34010914,118.66,118.64,0.063]
[1741632140595,81.98197562,118.67,118.64,0.063]
[1741632140794,93.34010914,118.65,118.64,0.063]
[1741632141096,110.83410914,118.65,118.64,0.063]
[1741632141718,13.28,118.65,118.64,0.063]
[1741632141911,90.83410914,118.65,118.64,0.063]
[1741632144603,109.76808114,118.65,118.64,0.063]
[1741632144817,90.83410914,118.65,118.64,0.063]
[1741632145018,109.76808114,118.65,118.64,0.063]
[1741632145199,90.83410914,118.65,118.64,0.063]
[1741632146103,86.62010914,118.65,118.64,0.063]
[1741632146831,13.28,118.65,118.64,0.063]
[1741632147709,86.62010914,118.65,118.64,0.063]
[1741632148019,309.88010914,118.65,118.64,0.063]
[1741632149233,314.09410914,118.65,118.64,0.063]
[1741632149435,314.26759957,118.65,118.64,0.063]
[1741632151031,236.71349043,118.65,118.64,0.063]
[1741632151541,240.92749043,118.65,118.64,0.063]
[1741632151740,223.43349043,118.65,118.64,0.063]
[1741632151941,223.43349043,118.65,118.64,73.40310914]
[1741632152230,223.43349043,118.65,118.64,0.063]
[1741632153839,223.43349043,118.65,118.64,73.40310914]
[1741632154133,0.17349043,118.65,118.64,73.68743228]
[1741632154515,0.17349043,118.65,118.64,0.063]
[1741632154708,0.17349043,118.65,118.64,73.40310914]